bitfinex-derivatives/quotes_ETHF0:USTF0_20250712
["timestamp","ask_amount","ask_price","bid_price","bid_amount"]
[1752302255534,3.14595,2959.7,2959.5,3.88327]
[1752302255831,3.14596,2959.6,2959.5,4.50878]
[1752302256032,3.14596,2959.6,2959.5,26.8543]
[1752302256226,3.14596,2959.6,2959.5,23.6465]
[1752302256728,3.14596,2959.6,2959.5,0.6255]
[1752302256932,4.89632,2959.9,2959.3,1.30102]
[1752302256933,2.4705,2959.4,2959.3,1.30102]
[1752302257132,2.4705,2959.4,2959.3,24.32102]
[1752302257332,2.4705,2959.4,2959.3,25.23262]
[1752302257831,3.14601,2959.4,2959.3,0.6255]
[1752302258132,3.14603,2959.3,2959.2,23.70061494]
[1752302258432,2.4705,2959.3,2959.2,24.32611494]
[1752302258631,2.4705,2959.3,2959.2,25.23771494]
[1752302258933,3.14603,2959.3,2959.2,25.23771494]
[1752302259131,3.14603,2959.3,2959.2,24.56217494]
[1752302259326,3.14603,2959.3,2959.2,25.23772494]
[1752302259530,3.14603,2959.3,2959.2,1.54217494]
[1752302259730,3.14603,2959.3,2959.2,2.21772494]
[1752302260434,6.35383,2959.3,2959.2,0.00507494]
[1752302260730,2.4705,2958.6,2958.5,1.5371]
[1752302260928,2.4705,2958.6,2958.5,3.162]
[1752302261127,4.7797,2958.9,2958.8,3.16194]
[1752302261527,5.6783,2958.9,2958.8,3.16194]
[1752302261929,6.35392,2958.9,2958.8,2.4863]
[1752302262830,5.6783,2958.9,2958.8,3.16194]
[1752302263834,6.35392,2958.9,2958.8,3.16194]
[1752302264129,3.14612,2958.9,2958.8,3.16194]
[1752302264533,3.14612,2958.9,2958.8,2.4863]
[1752302265734,2.4705,2958.9,2958.8,3.16194]
[1752302268037,0.8986,2958.9,2958.8,3.16194]
[1752302268330,1.5489,2958.9,2958.8,3.16194]
[1752302268536,2.4494,2958.9,2958.8,3.16194]
[1752302269940,2.4985,2959.1,2959.0,3.18328]
[1752302270141,2.4985,2959.1,2959.0,26.20728]
[1752302270636,3.2078,2959.2,2959.1,1.29027]
[1752302270837,5.056,2959.2,2959.1,3.18327]
[1752302271038,5.7063,2959.2,2959.1,3.18327]
[1752302271534,4.8058,2959.2,2959.1,3.18327]
[1752302271740,4.1555,2959.2,2959.1,3.18327]
[1752302273137,0.9477,2959.2,2959.1,3.18327]
[1752302274438,1.8482,2959.2,2959.1,3.18327]
[1752302274638,2.4985,2959.2,2959.1,3.18327]
[1752302281750,1.598,2959.4,2959.3,2.5077]
[1752302281952,2.4985,2959.4,2959.3,26.20623]
[1752302282144,0.9005,2959.5,2959.4,0.67551]
[1752302282350,1.5508,2959.8,2959.7,2.22993]
[1752302282545,1.5508,2959.8,2959.7,26.20613]
[1752302282750,2.4985,2959.8,2959.7,26.20613]
[1752302283150,4.7586,2959.9,2959.8,3.18311]
[1752302283656,5.7063,2959.9,2959.8,3.18311]
[1752302283953,3.2078,2959.9,2959.8,3.18311]
[1752302284353,1.8482,2960.1,2960.0,3.18307]
[1752302284653,2.4985,2960.1,2960.0,26.20607]
[1752302284855,0.9477,2960.1,2960.0,26.20607]
[1752302285054,0.9477,2960.1,2960.0,26.47587479]
[1752302285551,0.6503,2959.9,2959.8,1.29011]
[1752302285754,2.4985,2959.9,2959.8,25.24991]
[1752302286254,2.4985,2959.9,2959.8,25.52173979]
[1752302286453,2.4985,2959.9,2959.8,24.5745]
[1752302286654,3.17394,2959.7,2959.6,0.6147]
[1752302286951,3.17394,2959.7,2959.6,23.6347]
[1752302287845,0.9005,2959.6,2959.4,0.9398]
[1752302288050,2.4985,2959.4,2959.3,49.33553]
[1752302288250,2.4985,2959.4,2959.3,73.29533]
[1752302288555,3.17401,2959.4,2959.3,73.29533]
[1752302288757,2.4985,2959.4,2959.3,73.29533]
[1752302290856,2.4985,2959.4,2959.3,50.27533]
[1752302291350,2.4985,2959.4,2959.3,72.6198]
[1752302291557,2.4985,2959.4,2959.3,74.24853]
[1752302292857,2.4985,2959.4,2959.3,51.22853]
[1752302293156,2.4985,2959.4,2959.3,74.24853]
[1752302296062,2.4985,2959.4,2959.3,73.29533]
[1752302296368,2.4985,2959.4,2959.3,50.27533]
[1752302296561,2.4985,2959.4,2959.3,74.20863]
[1752302297862,2.4985,2959.4,2959.3,26.19803]
[1752302300669,2.4985,2959.4,2959.3,3.17803]
[1752302300868,2.4985,2959.4,2959.3,26.19803]
[1752302302669,2.4985,2959.4,2959.3,2.26473]
[1752302302871,2.4985,2959.4,2959.3,25.28373]
[1752302303364,2.4985,2959.4,2959.3,26.19703]
[1752302308573,2.4985,2959.4,2959.3,25.28373]
[1752302308773,2.4985,2959.4,2959.3,1.32493]
[1752302309069,2.4985,2959.4,2959.3,24.34393]
[1752302309271,2.4985,2959.4,2959.3,25.26083]
[1752302309472,2.4985,2959.4,2959.3,26.17413]
[1752302311174,0.9717,2959.7,2959.3,26.17413]
[1752302311372,1.6229,2959.7,2959.6,2.24176]
[1752302311572,1.6229,2959.7,2959.6,26.17306]
[1752302312069,2.5636,2959.7,2959.6,25.25976]
[1752302312568,2.5636,2959.7,2959.6,26.17306]
[1752302313776,3.23904,2959.7,2959.6,25.25976]
[1752302313973,2.5636,2959.7,2959.6,25.25976]
[1752302314575,2.5636,2959.7,2959.6,26.17306]
[1752302316072,0.9717,2959.9,2959.8,0.67541]
[1752302316372,2.5636,2959.9,2959.8,26.17301]
[1752302317570,0.9407,2959.9,2959.8,26.17301]
[1752302317770,1.9124,2959.9,2959.8,26.17301]
[1752302319173,2.5636,2959.9,2959.8,26.17301]
[1752302326281,0.9407,2959.9,2959.8,26.17301]
[1752302326982,1.9099,2960.0,2959.9,2.31509]
[1752302327179,1.9099,2960.0,2959.9,3.29129]
[1752302327780,2.5464,2960.0,2959.9,3.29129]
[1752302330989,2.5464,2960.0,2959.9,25.32709]
[1752302331681,2.5464,2960.0,2959.9,26.30329]
[1752302340692,2.5464,2960.0,2959.9,3.29129]
[1752302340993,2.5464,2960.0,2959.9,26.30029]
[1752302341193,2.5464,2960.0,2959.9,3.29129]
[1752302341394,2.5464,2960.0,2959.9,26.30029]
[1752302345493,2.5464,2960.0,2959.9,29.50809]
[1752302346193,2.5464,2960.6,2960.5,3.29115]
[1752302346398,2.5464,2960.6,2960.5,26.29915]
[1752302347396,3.22165,2960.6,2960.5,23.008]
[1752302347701,2.5464,2960.6,2960.5,23.68325]
[1752302347904,3.22163,2960.6,2960.5,23.68325]
[1752302348902,3.22163,2960.6,2960.3,0.9961]
[1752302349105,3.22163,2960.6,2960.5,0.67525]
[1752302349799,0.6365,2961.5,2961.2,0.9961]
[1752302349995,2.5464,2961.2,2961.1,0.67512]
[1752302350399,1.9099,2961.1,2960.9,23.31]
[1752302350605,1.5667,2960.8,2960.7,23.9832]
[1752302350807,0.6365,2960.7,2960.5,27.01906322]
[1752302351001,2.5464,2960.6,2960.5,27.01906322]
[1752302351401,2.5464,2960.6,2960.5,0.67524]
[1752302352202,2.5464,2960.6,2960.5,1.31884]
[1752302352607,2.5464,2960.6,2960.5,2.31494]
[1752302353205,2.5464,2960.6,2960.5,3.29114]
[1752302353809,2.5264,2960.9,2960.8,3.25049]
[1752302355909,2.5264,2960.9,2960.8,26.55249]
[1752302356705,2.5264,2960.9,2960.8,25.57629]
[1752302357010,2.4788,2960.8,2960.7,0.6752]
[1752302357212,2.4788,2960.8,2960.7,23.9752]
[1752302357710,2.4788,2960.8,2960.7,24.6306]
[1752302359214,2.4788,2960.8,2960.5,0.9555]
[1752302359215,0.6304,2960.8,2960.5,0.9555]
[1752302359405,2.4788,2960.3,2960.2,4.22969549]
[1752302359607,2.4788,2960.3,2960.2,27.52169549]
[1752302360009,2.4788,2960.3,2960.2,28.47719549]
[1752302361011,2.4788,2960.3,2960.2,2.28622]
[1752302361207,2.4788,2960.3,2960.2,28.47619549]
[1752302361611,2.4788,2960.5,2960.4,0.6554]
[1752302361806,2.4788,2960.5,2960.4,26.56128]
[1752302362007,0.9382,2960.5,2960.4,26.56128]
[1752302362203,0.9382,2960.7,2960.6,3.27623]
[1752302362514,0.9382,2960.8,2960.7,0.67521]
[1752302362810,0.9382,2960.8,2960.7,26.56121]
[1752302363010,2.4788,2960.8,2960.7,26.56121]
[1752302364815,2.24373,2961.1,2961.0,0.6554]
[1752302365008,3.15393,2961.1,2961.0,0.6554]
[1752302365207,2.4788,2961.1,2961.0,1.33054]
[1752302366711,2.4788,2961.1,2961.0,2.28604]
[1752302367806,2.4788,2961.1,2961.0,3.27614]
[1752302369513,2.4788,2961.1,2961.0,26.54614]
[1752302370907,2.4788,2961.5,2961.4,1.6455]
[1752302371110,3.15383,2961.5,2961.4,0.6554]
[1752302371504,0.67505,2961.4,2961.3,23.93906]
[1752302371814,2.4788,2961.1,2961.0,3.27614]
[1752302372512,2.4788,2961.1,2961.0,26.57314]
[1752302373315,2.4788,2961.1,2961.0,25.58104]
[1752302374319,2.4788,2961.1,2961.0,26.57114]
[1752302381619,2.4788,2961.1,2961.0,3.27614]
[1752302381818,0.6304,2960.7,2960.6,6.31205322]
[1752302382017,3.15403,2960.6,2960.5,3.03582322]
[1752302382217,6.36183,2960.6,2960.5,3.03582322]
[1752302382421,2.24388,2960.4,2960.3,3.03582322]
[1752302382622,2.2439,2960.3,2960.2,23.95031]
[1752302382816,3.1541,2960.3,2960.2,24.60571]
[1752302383016,6.3619,2960.3,2960.2,26.30058814]
[1752302383215,0.6304,2960.0,2959.9,7.93922959]
[1752302383513,0.6304,2960.0,2959.6,9.24488002]
[1752302383514,2.501,2960.0,2959.8,3.02558814]
[1752302383719,2.24401,2959.8,2959.7,3.02558814]
[1752302383918,2.24401,2959.8,2959.5,0.67548]
[1752302383919,2.5332,2959.6,2959.5,3.70106814]
[1752302384116,2.5332,2959.6,2959.5,26.98006814]
[1752302384317,2.5332,2959.6,2959.5,25.59088]
[1752302384513,3.2078,2959.9,2959.5,25.59088]
[1752302384514,1.595,2959.9,2959.8,1.32571]
[1752302384821,1.595,2959.9,2959.8,3.30191]
[1752302385018,2.5332,2959.9,2959.8,2.31181]
[1752302385915,2.5332,2959.9,2959.8,3.26091]
[1752302386219,5.744,2960.3,2960.2,3.26082]
[1752302386423,5.744,2960.3,2960.2,24.9194]
[1752302386920,5.744,2960.3,2960.2,25.59472]
[1752302387419,2.5362,2960.2,2960.1,0.67533]
[1752302387620,2.5362,2960.2,2960.1,24.61863]
[1752302388123,2.5362,2960.2,2960.1,25.60473]
[1752302388323,2.5362,2960.2,2960.1,26.55383]
[1752302388523,1.595,2960.4,2960.3,0.6753]
[1752302388720,2.5362,2960.4,2960.3,2.2747]
[1752302388914,2.5362,2960.4,2960.3,3.2608]
[1752302390318,2.5362,2960.4,2960.3,2.3117]
[1752302390519,3.21148,2960.4,2960.3,0.6503]
[1752302391819,3.21148,2960.4,2960.3,1.3256]
[1752302392220,2.5362,2960.4,2960.3,1.3256]
[1752302392630,2.5362,2960.4,2960.3,2.3117]
[1752302393020,2.5362,2960.4,2960.3,3.2608]
[1752302397229,1.6038,2960.4,2960.3,3.2608]
[1752302398227,2.5362,2960.6,2960.5,3.26075]
[1752302398421,2.5362,2960.6,2960.5,26.52975]
[1752302400026,1.6038,2960.6,2960.5,26.52975]
[1752302400425,2.5362,2960.6,2960.5,26.52975]
[1752302400927,1.6038,2960.6,2960.5,26.52975]
[1752302401428,2.5362,2960.6,2960.5,26.52975]
[1752302404324,2.5362,2960.8,2960.7,1.32551]
[1752302404530,2.5362,2960.8,2960.7,26.50771]
[1752302404730,1.6038,2960.8,2960.7,26.50771]
[1752302404930,2.5362,2960.8,2960.7,26.50771]
[1752302406234,2.5362,2960.8,2960.7,25.55861]
[1752302407131,2.5362,2960.8,2960.7,26.50771]
[1752302410731,3.2078,2961.0,2960.9,0.67516]
[1752302410930,4.149,2961.0,2960.9,26.48766]
[1752302411135,5.744,2961.0,2960.9,26.48766]
[1752302412033,5.744,2961.0,2960.9,24.55046]
[1752302412231,5.744,2961.0,2960.9,26.48566]
[1752302412438,4.8116,2961.0,2960.9,26.48566]
[1752302412638,0.9412,2961.0,2960.9,26.48566]
[1752302413134,2.5362,2961.0,2960.9,26.48566]
[1752302413638,2.5362,2961.0,2960.9,25.53156]
[1752302414638,2.5362,2961.0,2960.9,26.48066]
[1752302415738,2.5362,2961.0,2960.9,26.47466]
[1752302419237,2.5362,2961.0,2960.9,3.26066]
[1752302419438,2.5362,2961.0,2960.9,26.45966]
[1752302422334,2.5362,2961.0,2960.9,2.31156]
[1752302422539,2.27961,2960.7,2960.6,1.5603]
[1752302422740,2.5833,2960.7,2960.6,25.42153]
[1752302423636,2.5833,2960.7,2960.6,26.33933]
[1752302424148,3.25851,2960.7,2960.6,25.42153]
[1752302424749,2.5833,2960.7,2960.6,25.42153]
[1752302425450,3.25851,2960.7,2960.6,1.27373]
[1752302425749,2.5833,2960.7,2960.6,25.41953]
[1752302426752,2.5833,2960.7,2960.6,26.33733]
[1752302427848,2.5833,2960.9,2960.8,3.15329]
[1752302428051,2.5833,2960.9,2960.8,26.32829]
[1752302428848,3.25846,2960.9,2960.8,24.7353]
[1752302429255,0.6277,2960.8,2960.7,0.67521]
[1752302429548,2.5833,2960.8,2960.7,25.42651]
[1752302430240,2.5833,2960.8,2960.7,26.34431]
[1752302430940,0.9789,2961.1,2960.7,25.0706]
[1752302431147,2.5833,2961.1,2961.0,3.15324]
[1752302431345,2.5833,2961.1,2961.0,26.33924]
[1752302433851,1.6066,2961.4,2961.3,0.5985]
[1752302434051,3.25837,2961.4,2961.3,23.7775]
[1752302434248,3.25837,2961.4,2961.3,24.45257]
[1752302434448,3.25837,2961.4,2961.3,23.7775]
[1752302434847,3.25837,2961.4,2961.1,1.8796]
[1752302434848,0.67509,2961.2,2961.1,1.63691]
[1752302435050,3.25839,2961.2,2961.1,23.219]
[1752302435450,3.25839,2961.2,2961.1,25.45442]
[1752302435451,2.5833,2961.2,2961.1,25.45442]
[1752302435651,2.5833,2961.2,2961.1,26.37222]
[1752302435851,2.5833,2961.2,2961.1,25.45442]
[1752302436053,3.25839,2961.2,2961.1,25.45442]
[1752302437157,3.25839,2961.2,2961.1,24.50162]
[1752302437854,3.25839,2961.2,2961.1,23.228]
[1752302438053,3.25842,2961.1,2961.0,0.5985]
[1752302438253,3.25842,2961.1,2961.0,23.8255]
[1752302438851,2.5833,2961.1,2961.0,1.27363]
[1752302439050,2.5833,2961.1,2961.0,24.49963]
[1752302439451,2.5833,2961.1,2961.0,25.46143]
[1752302440955,2.5833,2961.1,2961.0,26.37923]
[1752302442162,3.25842,2961.1,2961.0,25.46143]
[1752302442560,3.25842,2961.1,2961.0,26.37923]
[1752302442561,2.5833,2961.1,2961.0,26.37923]
[1752302443562,0.9767,2961.1,2961.0,26.37923]
[1752302444158,5.41127,2961.3,2961.2,1.31529]
[1752302444359,2.5051,2961.3,2961.2,25.44409]
[1752302444560,3.18017,2961.3,2961.2,26.37189]
[1752302445163,2.5051,2961.3,2961.2,26.37189]
[1752302446463,2.5051,2961.3,2961.0,0.9278]
[1752302446768,3.1022,2961.2,2961.1,24.5173]
[1752302448164,3.1022,2961.2,2961.1,1.3153]
[1752302448370,2.4271,2960.7,2960.6,8.47661814]
[1752302448672,2.4271,2960.7,2960.6,29.57853]
[1752302450668,3.10231,2960.7,2960.6,29.57853]
[1752302450864,3.10231,2960.7,2960.6,28.65103]
[1752302451269,3.10231,2960.7,2960.6,25.44323]
[1752302451566,2.4271,2960.7,2960.6,25.44323]
[1752302451966,3.10231,2960.7,2960.6,25.44323]
[1752302452972,2.4271,2960.7,2960.6,25.44323]
[1752302453472,2.4271,2960.7,2960.6,2.24323]
[1752302453667,2.4271,2960.7,2960.6,26.36173]
[1752302455573,2.4271,2960.7,2960.6,25.43423]
[1752302455975,3.10231,2960.7,2960.5,0.67524]
[1752302456175,2.4271,2960.6,2960.5,2.24324]
[1752302456372,2.4271,2960.6,2960.5,26.35274]
[1752302461677,0.9146,2960.8,2960.5,25.6775]
[1752302461980,1.5125,2960.8,2960.7,1.31541]
[1752302462181,2.4271,2960.8,2960.7,26.33571]
[1752302462978,3.10229,2960.8,2960.7,26.33571]
[1752302463378,3.10229,2960.8,2960.7,25.40821]
[1752302463580,3.10229,2960.8,2960.7,26.33571]
[1752302463581,2.4271,2960.8,2960.7,26.33571]
[1752302463882,3.10229,2960.8,2960.7,26.33571]
[1752302464382,2.4271,2960.8,2960.7,26.33571]
[1752302465278,3.10229,2960.8,2960.7,26.33571]
[1752302466072,3.10229,2960.8,2960.7,25.40821]
[1752302466382,2.4271,2960.8,2960.7,26.33571]
[1752302467180,3.10229,2960.8,2960.7,26.33571]
[1752302467381,3.10229,2960.8,2960.7,25.40821]
[1752302467580,2.4271,2960.8,2960.7,26.33571]
[1752302471083,3.10229,2960.8,2960.7,26.33571]
[1752302471385,2.4271,2960.8,2960.7,26.33571]
[1752302471877,3.10229,2960.8,2960.7,26.33571]
[1752302472279,2.4271,2960.8,2960.7,26.33571]
[1752302473380,2.24645,2961.0,2960.9,1.31536]
[1752302473584,3.16105,2961.0,2960.9,26.29886]
[1752302475489,2.4859,2961.0,2960.9,26.29886]
[1752302476283,5.7187,2961.3,2961.2,3.16739]
[1752302476589,6.39378,2961.3,2961.2,25.32259]
[1752302478489,3.18598,2961.3,2961.2,25.32259]
[1752302479087,2.5109,2961.3,2961.2,25.32259]
[1752302479289,2.5109,2961.3,2961.2,26.29539]
[1752302479489,3.18597,2961.3,2961.2,26.29539]
[1752302481084,2.5109,2961.3,2961.2,26.29539]
[1752302481691,3.18597,2961.3,2961.2,26.29539]
[1752302481891,2.5109,2961.3,2961.2,26.29539]
[1752302483292,3.18597,2961.3,2961.2,26.29539]
[1752302483593,3.18597,2961.3,2961.2,25.32259]
[1752302485298,3.18597,2961.3,2961.2,24.6475]
[1752302485595,3.18597,2961.3,2961.2,0.5995]
[1752302485797,3.18602,2961.1,2961.0,1.5195]
[1752302485994,1.8845,2961.2,2961.0,23.103]
[1752302486194,3.18602,2961.1,2961.0,24.6225]
[1752302486600,3.18602,2961.1,2961.0,26.27044]
[1752302487096,3.18602,2961.1,2961.0,25.5953]
[1752302487293,1.30156,2960.9,2960.8,2.4923]
[1752302487490,3.18606,2960.9,2960.8,24.6245]
[1752302487691,3.18606,2960.9,2960.8,25.29968]
[1752302489600,2.5109,2960.9,2960.8,26.27248]
[1752302489800,3.18606,2960.9,2960.8,26.27248]
[1752302491603,2.5109,2960.9,2960.8,26.27248]
[1752302491999,3.18606,2960.9,2960.8,26.27248]
[1752302492209,2.5109,2960.9,2960.8,26.27248]
[1752302492497,3.186,2961.2,2961.1,3.16741]
[1752302492803,2.5109,2961.2,2961.1,26.26141]
[1752302494107,0.925,2961.2,2961.1,26.26141]
[1752302494405,2.5109,2961.2,2961.1,26.26141]
[1752302496004,3.18604,2961.0,2960.9,3.2078]
[1752302496299,3.18604,2961.0,2960.9,26.2988]
[1752302496802,3.18609,2960.8,2960.7,2.19469]
[1752302496998,3.18609,2960.8,2960.7,25.29669]
[1752302497200,2.5109,2960.8,2960.7,25.29669]
[1752302497799,2.5109,2960.8,2960.7,26.26949]
[1752302500806,2.5109,2961.1,2961.0,0.67514]
[1752302501006,3.18602,2961.1,2961.0,26.26444]
[1752302501311,2.5109,2961.1,2961.0,25.29164]
[1752302504308,3.18602,2961.1,2961.0,2.19464]
[1752302504507,3.18602,2961.1,2961.0,25.28264]
[1752302504908,2.5109,2961.1,2961.0,26.25544]
[1752302505504,2.5109,2961.1,2961.0,25.28264]
[1752302507612,2.5109,2961.1,2961.0,26.23004]
[1752302507912,2.5109,2961.1,2961.0,25.28264]
[1752302510311,2.5109,2961.1,2961.0,26.23004]
[1752302513915,2.5109,2961.1,2961.0,0.67514]
[1752302514117,3.18602,2961.1,2961.0,23.75314]
[1752302514314,3.18602,2961.1,2961.0,24.38724]
[1752302515416,3.18602,2961.1,2961.0,25.31914]
[1752302515923,2.5109,2961.1,2961.0,26.26654]
[1752302516718,2.5109,2961.1,2961.0,25.31914]
[1752302517017,3.18602,2961.1,2961.0,25.31914]
[1752302517212,2.5109,2961.1,2961.0,25.31914]
[1752302517522,3.18602,2961.1,2961.0,25.31914]
[1752302518120,2.5109,2961.1,2961.0,25.31914]
[1752302518318,2.5109,2961.1,2961.0,26.26654]
[1752302520415,3.18602,2961.1,2961.0,26.26654]
[1752302521019,2.5109,2961.1,2961.0,26.26654]
[1752302521319,3.18602,2961.1,2961.0,26.26654]
[1752302522312,3.18602,2961.1,2961.0,25.5914]
[1752302522517,3.18602,2961.1,2961.0,1.566]
[1752302522716,3.18602,2961.1,2961.0,24.644]
[1752302522918,3.18602,2961.1,2961.0,25.31914]
[1752302525120,3.18602,2961.1,2961.0,24.644]
[1752302525322,3.18602,2961.1,2961.0,25.31914]
[1752302526625,3.18602,2961.1,2961.0,26.26654]
[1752302529225,3.18602,2961.1,2961.0,25.5914]
[1752302530427,3.18602,2961.1,2961.0,26.26654]
[1752302530825,0.0050662,2961.3,2961.0,23.078]
[1752302531128,3.1569362,2961.3,2961.2,2.5134]
[1752302531328,3.1569362,2961.3,2961.2,25.5904]
[1752302531734,3.1569362,2961.3,2961.2,26.26549]
[1752302533331,3.1569362,2961.3,2961.2,25.31809]
[1752302533731,2.4818662,2961.3,2961.2,26.26549]
[1752302536238,0.0050662,2961.3,2961.2,26.26549]
[1752302536432,1.9277,2961.1,2960.9,0.67515]
[1752302536633,2.563,2961.0,2960.9,24.39465]
[1752302536827,0.6353,2960.9,2960.6,3.02558814]
[1752302537032,2.563,2960.7,2960.6,1.6062]
[1752302537228,2.563,2960.7,2960.6,3.18353]
[1752302537424,2.563,2960.7,2960.6,26.47953]
[1752302538035,2.563,2960.7,2960.6,2.5083]
[1752302538234,2.01427835,2960.7,2960.6,25.8063]
[1752302539334,2.01427835,2960.7,2960.6,25.8013]
[1752302539531,1.01957835,2960.7,2960.6,26.47653]
[1752302539834,0.933,2960.7,2960.6,26.47653]
[1752302540535,1.63,2960.9,2960.8,1.6062]
[1752302540736,1.63,2960.9,2960.8,25.7993]
[1752302541035,1.5683,2961.0,2960.9,2.22175]
[1752302541234,1.5683,2961.0,2960.9,3.18345]
[1752302541535,2.563,2961.0,2960.9,3.18345]
[1752302541929,0.6353,2961.2,2961.1,1.31961]
[1752302542129,1.5683,2961.2,2961.1,3.18341]
[1752302547941,0.933,2961.2,2961.1,3.18341]
[1752302548139,0.9380662,2961.3,2961.2,3.18339]
[1752302548439,0.9380662,2961.3,2961.2,26.44739]
[1752302549537,0.0050662,2961.3,2961.2,28.35626549]
[1752302550038,0.0050662,2961.3,2961.2,31.38185363]
[1752302550441,0.0050662,2961.3,2961.2,28.35626549]
[1752302559153,0.0050662,2961.3,2961.2,28.32426549]
[1752302560950,0.933,2961.6,2961.5,0.67503]
[1752302561149,0.933,2961.6,2961.5,29.61313]
[1752302562351,0.9947,2961.8,2961.7,1.31948]
[1752302562557,2.563,2961.8,2961.7,26.39728]
[1752302563252,3.2078,2962.2,2961.7,26.39728]
[1752302563253,2.5528,2962.2,2962.1,2.22429]
[1752302563452,2.5528,2962.2,2962.1,26.33839]
[1752302565156,2.5528,2962.2,2962.1,25.43629]
[1752302566550,0.9548,2962.1,2961.9,1.57982]
[1752302566754,0.9548,2961.9,2961.8,4.1127]
[1752302566956,2.571,2961.9,2961.8,28.61945]
[1752302567450,2.571,2961.9,2961.8,5.40745]
[1752302567653,2.571,2961.9,2961.8,28.61645]
[1752302569255,2.571,2961.9,2961.8,6.30465]
[1752302569461,2.571,2961.9,2961.8,29.50665]
[1752302569759,1.5865,2961.9,2961.8,29.50665]
[1752302570261,2.571,2961.9,2961.8,29.50665]
[1752302570759,1.5865,2961.9,2961.8,29.50665]
[1752302572163,2.571,2961.9,2961.8,29.50665]
[1752302573958,1.5865,2961.9,2961.8,29.50665]
[1752302574958,2.571,2961.9,2961.8,29.50665]
[1752302576756,2.571,2961.9,2961.8,29.48565]
[1752302578468,2.571,2961.9,2961.8,6.30465]
[1752302578768,2.571,2961.9,2961.8,29.48165]
[1752302580267,0.6317,2962.1,2962.0,1.5247]
[1752302580463,1.5865,2962.1,2962.0,26.26781]
[1752302581272,2.571,2962.1,2962.0,26.26581]
[1752302581966,2.571,2962.1,2962.0,26.26481]
[1752302582961,4.54481,2962.5,2962.3,0.67482]
[1752302583167,2.571,2962.4,2962.3,1.29462]
[1752302583467,2.571,2962.4,2962.3,24.45662]
[1752302583665,2.571,2962.4,2962.3,25.36152]
[1752302583864,2.571,2962.4,2962.3,26.25872]
[1752302585165,2.571,2962.4,2962.3,25.36152]
[1752302585470,2.571,2962.4,2962.3,25.62558698]
[1752302585869,1.9393,2963.2,2962.4,1.68702]
[1752302586069,2.571,2962.6,2962.5,25.3865]
[1752302586769,2.571,2962.6,2962.5,2.1995]
[1752302586969,3.24578,2962.6,2962.5,24.7167]
[1752302587272,0.6317,2962.4,2962.3,1.57973]
[1752302587467,1.5865,2962.4,2962.3,24.77073]
[1752302587677,2.571,2962.4,2962.3,24.76973]
[1752302588074,2.571,2962.4,2962.3,25.38953]
[1752302590178,0.9548,2962.4,2962.3,26.28673]
[1752302590579,5.7788,2962.7,2962.6,3.09668]
[1752302590778,5.7788,2962.7,2962.6,26.27868]
[1752302592077,2.571,2962.7,2962.6,26.27868]
[1752302593479,1.5865,2962.7,2962.6,26.27868]
[1752302593678,2.4892,2962.7,2962.6,26.27868]
[1752302594073,1.5166,2962.8,2962.7,2.17975]
[1752302594275,1.5166,2962.8,2962.7,3.16815]
[1752302594574,2.4714,2962.8,2962.7,3.16815]
[1752302595580,0.9548,2962.8,2962.7,3.18515]
[1752302596173,2.5119,2963.1,2963.0,3.18508]
[1752302596373,0.9953,2963.1,2963.0,26.35008]
[1752302596578,1.6092,2963.1,2963.0,26.35008]
[1752302598281,4.7244,2963.3,2963.2,2.19664]
[1752302598582,4.7244,2963.3,2963.2,26.34704]
[1752302598978,5.7197,2963.3,2963.2,26.34704]
[1752302599180,2.5119,2963.3,2963.2,26.34704]
[1752302599776,1.6092,2963.3,2963.2,26.34704]
[1752302600272,3.18652,2963.3,2963.2,24.7582]
[1752302600474,3.18652,2963.3,2963.2,1.5962]
[1752302600671,3.18652,2963.3,2963.2,23.7628]
[1752302601382,3.18652,2963.3,2963.2,24.43744]
[1752302601584,3.18652,2963.3,2963.2,24.7512]
[1752302602176,3.18652,2963.3,2963.2,25.42584]
[1752302603485,1.6092,2963.3,2963.2,26.34004]
[1752302604679,3.2078,2963.6,2963.5,1.5962]
[1752302604879,1.28838,2963.9,2963.6,0.67454]
[1752302605078,1.5166,2963.7,2963.6,4.804]
[1752302605277,2.5119,2963.7,2963.6,28.62755]
[1752302605773,1.6092,2963.7,2963.6,29.54175]
[1752302606382,3.18643,2963.7,2963.6,3.2078]
[1752302606681,3.18643,2963.7,2963.6,23.145]
[1752302607082,2.5119,2963.7,2963.6,25.41575]
[1752302607386,2.5119,2963.9,2963.8,2.2707]
[1752302607584,2.5119,2963.9,2963.8,26.3289]
[1752302607979,2.5119,2963.9,2963.8,25.4147]
[1752302608384,2.5119,2963.9,2963.8,25.41117188]
[1752302609277,3.18638,2963.9,2963.8,25.41117188]
[1752302609476,2.5119,2963.9,2963.8,25.41117188]
[1752302612283,2.5119,2963.9,2963.8,26.32537188]
[1752302613385,3.18638,2963.9,2963.8,1.5962]
[1752302613683,3.18643,2963.7,2963.6,23.125]
[1752302613877,2.5119,2963.4,2963.3,5.4786]
[1752302614082,2.5119,2963.4,2963.3,28.6076]
[1752302614279,3.18649,2963.4,2963.3,28.6076]
[1752302614588,3.18649,2963.4,2963.3,27.933]
[1752302615287,3.18649,2963.4,2963.3,5.47862]
[1752302615591,3.18649,2963.4,2963.3,28.61162]
[1752302615888,3.18649,2963.4,2963.3,27.937]